Workbook

Sheet Worksheet
D1: Write these numbers in full
D3: 1 | E3: 4 | F3: 2 | G3: · | H3: 0 | I3: 9 | J3: 8 | N3: 2·098 | O3: × 10 | P3: -1 | Q3: = | R3: 0·2098 | S3: 16 | T3: 4 | U3: 9 | V3: · | W3: 4 | X3: 7 | Y3: 9 | AC3: 9·479 | AD3: × 10 | AE3: 8 | AF3: = | AG3: 947900000 | AH3: 31 | AI3: 3 | AJ3: 2 | AK3: · | AL3: 8 | AM3: 7 | AR3: 2·87 | AS3: × 10 | AT3: 1 | AU3: = | AV3: 28·7
A4: Variables | D4: 2 | E4: 1 | F4: 9 | N4: 9 | O4: × 10 | P4: 8 | Q4: = | R4: 900000000 | S4: 17 | T4: 2 | U4: 1 | V4: · | W4: 4 | AC4: 1·4 | AD4: × 10 | AE4: 6 | AF4: = | AG4: 1400000 | AH4: 32 | AI4: 1 | AJ4: 1 | AR4: 1 | AS4: × 10 | AT4: 3 | AU4: = | AV4: 1000
A5: Number of questions (minimum 18, maximum 45) | B5: 45 | D5: 3 | E5: 4 | F5: 2 | G5: · | H5: 1 | I5: 6 | J5: 7 | N5: 2·167 | O5: × 10 | P5: 7 | Q5: = | R5: 21670000 | S5: 18 | T5: 2 | U5: 3 | V5: · | W5: 3 | AC5: 3·3 | AD5: × 10 | AE5: -4 | AF5: = | AG5: 0·00033 | AH5: 33 | AI5: 1 | AJ5: 1 | AR5: 1 | AS5: × 10 | AT5: 6 | AU5: = | AV5: 1000000
A6: Positive powers of 10 only | B6: 3 | D6: 4 | E6: 2 | F6: 1 | G6: · | H6: 3 | N6: 1·3 | O6: × 10 | P6: -2 | Q6: = | R6: 0·013 | S6: 19 | T6: 3 | U6: 4 | V6: · | W6: 5 | X6: 8 | AC6: 4·58 | AD6: × 10 | AE6: 6 | AF6: = | AG6: 4580000 | AH6: 34 | AI6: 3 | AJ6: 3 | AK6: · | AL6: 3 | AM6: 4 | AR6: 3·34 | AS6: × 10 | AT6: 9 | AU6: = | AV6: 3340000000
A7: Negative powers of 10 only | D7: 5 | E7: 3 | F7: 2 | G7: · | H7: 1 | I7: 9 | N7: 2·19 | O7: × 10 | P7: -3 | Q7: = | R7: 0·00219 | S7: 20 | T7: 3 | U7: 2 | V7: · | W7: 8 | X7: 7 | AC7: 2·87 | AD7: × 10 | AE7: 2 | AF7: = | AG7: 287 | AH7: 35 | AI7: 1 | AJ7: 8 | AR7: 8 | AS7: × 10 | AT7: -2 | AU7: = | AV7: 0·08
A8: Positive and negative powers of 10 | D8: 6 | E8: 5 | F8: 4 | G8: · | H8: 2 | I8: 2 | J8: 3 | K8: 7 | N8: 4·2237 | O8: × 10 | P8: 0 | Q8: = | R8: 4·2237 | S8: 21 | T8: 5 | U8: 5 | V8: · | W8: 2 | X8: 7 | Y8: 9 | Z8: 2 | AC8: 5·2792 | AD8: × 10 | AE8: -4 | AF8: = | AG8: 0·00052792 | AH8: 36 | AI8: 3 | AJ8: 9 | AK8: · | AL8: 2 | AM8: 5 | AR8: 9·25 | AS8: × 10 | AT8: 4 | AU8: = | AV8: 92500
A9: Maximum number of decimal places before ×10n | B9: 4 | D9: 7 | E9: 1 | F9: 3 | N9: 3 | O9: × 10 | P9: -5 | Q9: = | R9: 0·00003 | S9: 22 | T9: 2 | U9: 6 | V9: · | W9: 8 | AC9: 6·8 | AD9: × 10 | AE9: -5 | AF9: = | AG9: 0·000068 | AH9: 37 | AI9: 3 | AJ9: 7 | AK9: · | AL9: 3 | AM9: 5 | AR9: 7·35 | AS9: × 10 | AT9: 2 | AU9: = | AV9: 735
A10: SHOW ANSWERS? | B10: FALSE | D10: 8 | E10: 2 | F10: 8 | G10: · | H10: 5 | N10: 8·5 | O10: × 10 | P10: -3 | Q10: = | R10: 0·0085 | S10: 23 | T10: 1 | U10: 1 | AC10: 1 | AD10: × 10 | AE10: 9 | AF10: = | AG10: 1000000000 | AH10: 38 | AI10: 3 | AJ10: 9 | AK10: · | AL10: 1 | AM10: 2 | AR10: 9·12 | AS10: × 10 | AT10: 8 | AU10: = | AV10: 912000000
D11: 9 | E11: 4 | F11: 3 | G11: · | H11: 7 | I11: 0 | J11: 1 | N11: 3·701 | O11: × 10 | P11: 8 | Q11: = | R11: 370100000 | S11: 24 | T11: 5 | U11: 7 | V11: · | W11: 3 | X11: 4 | Y11: 0 | Z11: 7 | AC11: 7·3407 | AD11: × 10 | AE11: 2 | AF11: = | AG11: 734·07 | AH11: 39 | AI11: 5 | AJ11: 6 | AK11: · | AL11: 2 | AM11: 5 | AN11: 9 | AO11: 4 | AR11: 6·2594 | AS11: × 10 | AT11: 7 | AU11: = | AV11: 62594000
D12: 10 | E12: 1 | F12: 5 | N12: 5 | O12: × 10 | P12: -5 | Q12: = | R12: 0·00005 | S12: 25 | T12: 1 | U12: 8 | AC12: 8 | AD12: × 10 | AE12: 3 | AF12: = | AG12: 8000 | AH12: 40 | AI12: 5 | AJ12: 9 | AK12: · | AL12: 2 | AM12: 0 | AN12: 9 | AO12: 2 | AR12: 9·2092 | AS12: × 10 | AT12: 6 | AU12: = | AV12: 9209200
D13: 11 | E13: 5 | F13: 3 | G13: · | H13: 0 | I13: 9 | J13: 0 | K13: 1 | N13: 3·0901 | O13: × 10 | P13: -1 | Q13: = | R13: 0·30901 | S13: 26 | T13: 1 | U13: 9 | AC13: 9 | AD13: × 10 | AE13: 6 | AF13: = | AG13: 9000000 | AH13: 41 | AI13: 1 | AJ13: 9 | AR13: 9 | AS13: × 10 | AT13: 3 | AU13: = | AV13: 9000
D14: 12 | E14: 3 | F14: 4 | G14: · | H14: 5 | I14: 7 | N14: 4·57 | O14: × 10 | P14: 1 | Q14: = | R14: 45·7 | S14: 27 | T14: 4 | U14: 2 | V14: · | W14: 6 | X14: 6 | Y14: 9 | AC14: 2·669 | AD14: × 10 | AE14: -1 | AF14: = | AG14: 0·2669 | AH14: 42 | AI14: 2 | AJ14: 2 | AK14: · | AL14: 5 | AR14: 2·5 | AS14: × 10 | AT14: -4 | AU14: = | AV14: 0·00025
D15: 13 | E15: 4 | F15: 4 | G15: · | H15: 7 | I15: 3 | J15: 1 | N15: 4·731 | O15: × 10 | P15: -2 | Q15: = | R15: 0·04731 | S15: 28 | T15: 2 | U15: 2 | V15: · | W15: 3 | AC15: 2·3 | AD15: × 10 | AE15: 2 | AF15: = | AG15: 230 | AH15: 43 | AI15: 2 | AJ15: 3 | AK15: · | AL15: 8 | AR15: 3·8 | AS15: × 10 | AT15: 2 | AU15: = | AV15: 380
D16: 14 | E16: 5 | F16: 1 | G16: · | H16: 9 | I16: 0 | J16: 8 | K16: 4 | N16: 1·9084 | O16: × 10 | P16: 1 | Q16: = | R16: 19·084 | S16: 29 | T16: 1 | U16: 5 | AC16: 5 | AD16: × 10 | AE16: 9 | AF16: = | AG16: 5000000000 | AH16: 44 | AI16: 5 | AJ16: 2 | AK16: · | AL16: 0 | AM16: 6 | AN16: 8 | AO16: 6 | AR16: 2·0686 | AS16: × 10 | AT16: 7 | AU16: = | AV16: 20686000
D17: 15 | E17: 5 | F17: 4 | G17: · | H17: 0 | I17: 9 | J17: 5 | K17: 1 | N17: 4·0951 | O17: × 10 | P17: 1 | Q17: = | R17: 40·951 | S17: 30 | T17: 2 | U17: 3 | V17: · | W17: 3 | AC17: 3·3 | AD17: × 10 | AE17: 4 | AF17: = | AG17: 33000 | AH17: 45 | AI17: 3 | AJ17: 2 | AK17: · | AL17: 3 | AM17: 9 | AR17: 2·39 | AS17: × 10 | AT17: 9 | AU17: = | AV17: 2390000000

Sheet SYSTEM FORMULAE
A1: =IF(ROW()<=Worksheet!$B$5/3,ROW(),"") -> 1 | B1: =RANDBETWEEN(1,Worksheet!$B$9+1) -> 4 | C1: =RANDBETWEEN(1,9) -> 5 | D1: =IF(E1="","","·") -> · | E1: =IF(COLUMN()-COLUMN($B1)-1<$B1,IF(RAND()<0.2,0,RANDBETWEEN(1,9)),IF(COLUMN()-COLUMN($B1)-1=$B1,RANDBETWEEN(1,9),"")) -> 1 | F1: =IF(COLUMN()-COLUMN($B1)-1<$B1,IF(RAND()<0.2,0,RANDBETWEEN(1,9)),IF(COLUMN()-COLUMN($B1)-1=$B1,RANDBETWEEN(1,9),"")) -> 3 | G1: =IF(COLUMN()-COLUMN($B1)-1<$B1,IF(RAND()<0.2,0,RANDBETWEEN(1,9)),IF(COLUMN()-COLUMN($B1)-1=$B1,RANDBETWEEN(1,9),"")) -> 8 | H1: =IF(COLUMN()-COLUMN($B1)-1<$B1,IF(RAND()<0.2,0,RANDBETWEEN(1,9)),IF(COLUMN()-COLUMN($B1)-1=$B1,RANDBETWEEN(1,9),"")) ->  | I1: =IF(COLUMN()-COLUMN($B1)-1<$B1,IF(RAND()<0.2,0,RANDBETWEEN(1,9)),IF(COLUMN()-COLUMN($B1)-1=$B1,RANDBETWEEN(1,9),"")) ->  | K1: =CONCATENATE(C1,D1,E1,F1,G1,H1,I1) -> 5·138 | L1: × 10 | M1: =IF(Worksheet!$B$6=1,RANDBETWEEN(0,9),IF(Worksheet!$B$6=2,RANDBETWEEN(-5,-1),RANDBETWEEN(-5,9))) -> 4 | N1: = | O1: =(C1+IF(E1="",0,E1)*0.1+IF(F1="",0,F1)*0.01+IF(G1="",0,G1)*0.001+IF(H1="",0,H1)*0.0001+IF(I1="",0,I1)*0.00001)*(10^M1) -> 51380 | P1: =MAX(A1:A40)+1 -> 16 | Q1: =RANDBETWEEN(1,Worksheet!$B$9+1) -> 2 | R1: =RANDBETWEEN(1,9) -> 2 | S1: =IF(T1="","","·") -> · | T1: =IF(COLUMN()-COLUMN($Q1)-1<$Q1,IF(RAND()<0.2,0,RANDBETWEEN(1,9)),IF(COLUMN()-COLUMN($Q1)-1=$Q1,RANDBETWEEN(1,9),"")) -> 8 | U1: =IF(COLUMN()-COLUMN($Q1)-1<$Q1,IF(RAND()<0.2,0,RANDBETWEEN(1,9)),IF(COLUMN()-COLUMN($Q1)-1=$Q1,RANDBETWEEN(1,9),"")) ->  | V1: =IF(COLUMN()-COLUMN($Q1)-1<$Q1,IF(RAND()<0.2,0,RANDBETWEEN(1,9)),IF(COLUMN()-COLUMN($Q1)-1=$Q1,RANDBETWEEN(1,9),"")) ->  | W1: =IF(COLUMN()-COLUMN($Q1)-1<$Q1,IF(RAND()<0.2,0,RANDBETWEEN(1,9)),IF(COLUMN()-COLUMN($Q1)-1=$Q1,RANDBETWEEN(1,9),"")) ->  | X1: =IF(COLUMN()-COLUMN($Q1)-1<$Q1,IF(RAND()<0.2,0,RANDBETWEEN(1,9)),IF(COLUMN()-COLUMN($Q1)-1=$Q1,RANDBETWEEN(1,9),"")) ->  | Z1: =CONCATENATE(R1,S1,T1,U1,V1,W1,X1) -> 2·8 | AA1: × 10 | AB1: =IF(Worksheet!$B$6=1,RANDBETWEEN(0,9),IF(Worksheet!$B$6=2,RANDBETWEEN(-5,-1),RANDBETWEEN(-5,9))) -> 4 | AC1: = | AD1: =(R1+IF(T1="",0,T1)*0.1+IF(U1="",0,U1)*0.01+IF(V1="",0,V1)*0.001+IF(W1="",0,W1)*0.0001+IF(X1="",0,X1)*0.00001)*(10^AB1) -> 28000 | AE1: =MAX(P1:P40)+1 -> 31 | AF1: =RANDBETWEEN(1,Worksheet!$B$9+1) -> 2 | AG1: =RANDBETWEEN(1,9) -> 1 | AH1: =IF(AI1="","","·") -> · | AI1: =IF(COLUMN()-COLUMN($AF1)-1<$AF1,IF(RAND()<0.2,0,RANDBETWEEN(1,9)),IF(COLUMN()-COLUMN($AF1)-1=$AF1,RANDBETWEEN(1,9),"")) -> 8 | AJ1: =IF(COLUMN()-COLUMN($AF1)-1<$AF1,IF(RAND()<0.2,0,RANDBETWEEN(1,9)),IF(COLUMN()-COLUMN($AF1)-1=$AF1,RANDBETWEEN(1,9),"")) ->  | AK1: =IF(COLUMN()-COLUMN($AF1)-1<$AF1,IF(RAND()<0.2,0,RANDBETWEEN(1,9)),IF(COLUMN()-COLUMN($AF1)-1=$AF1,RANDBETWEEN(1,9),"")) ->  | AL1: =IF(COLUMN()-COLUMN($AF1)-1<$AF1,IF(RAND()<0.2,0,RANDBETWEEN(1,9)),IF(COLUMN()-COLUMN($AF1)-1=$AF1,RANDBETWEEN(1,9),"")) ->  | AM1: =IF(COLUMN()-COLUMN($AF1)-1<$AF1,IF(RAND()<0.2,0,RANDBETWEEN(1,9)),IF(COLUMN()-COLUMN($AF1)-1=$AF1,RANDBETWEEN(1,9),"")) ->  | AO1: =CONCATENATE(AG1,AH1,AI1,AJ1,AK1,AL1,AM1) -> 1·8 | AP1: × 10 | AQ1: =IF(Worksheet!$B$6=1,RANDBETWEEN(0,9),IF(Worksheet!$B$6=2,RANDBETWEEN(-5,-1),RANDBETWEEN(-5,9))) -> 2 | AR1: = | AS1: =(AG1+IF(AI1="",0,AI1)*0.1+IF(AJ1="",0,AJ1)*0.01+IF(AK1="",0,AK1)*0.001+IF(AL1="",0,AL1)*0.0001+IF(AM1="",0,AM1)*0.00001)*(10^AQ1) -> 180
A2: =IF(ROW()<=Worksheet!$B$5/3,ROW(),"") -> 2 | B2: =RANDBETWEEN(1,Worksheet!$B$9+1) -> 2 | C2: =RANDBETWEEN(1,9) -> 3 | D2: =IF(E2="","","·") -> · | E2: =IF(COLUMN()-COLUMN($B2)-1<$B2,IF(RAND()<0.2,0,RANDBETWEEN(1,9)),IF(COLUMN()-COLUMN($B2)-1=$B2,RANDBETWEEN(1,9),"")) -> 2 | K2: =CONCATENATE(C2,D2,E2,F2,G2,H2,I2) -> 3·2 | L2: × 10 | M2: =IF(Worksheet!$B$6=1,RANDBETWEEN(0,9),IF(Worksheet!$B$6=2,RANDBETWEEN(-5,-1),RANDBETWEEN(-5,9))) -> 5 | N2: = | O2: =(C2+IF(E2="",0,E2)*0.1+IF(F2="",0,F2)*0.01+IF(G2="",0,G2)*0.001+IF(H2="",0,H2)*0.0001+IF(I2="",0,I2)*0.00001)*(10^M2) -> 320000 | P2: =IF(ROW()<=Worksheet!$B$5/3,P1+1,"") -> 17 | Q2: =RANDBETWEEN(1,Worksheet!$B$9+1) -> 5 | R2: =RANDBETWEEN(1,9) -> 1 | S2: =IF(T2="","","·") -> · | T2: =IF(COLUMN()-COLUMN($Q2)-1<$Q2,IF(RAND()<0.2,0,RANDBETWEEN(1,9)),IF(COLUMN()-COLUMN($Q2)-1=$Q2,RANDBETWEEN(1,9),"")) -> 0 | U2: 0 | V2: 8 | W2: 7 | Z2: =CONCATENATE(R2,S2,T2,U2,V2,W2,X2) -> 1·0087 | AA2: × 10 | AB2: =IF(Worksheet!$B$6=1,RANDBETWEEN(0,9),IF(Worksheet!$B$6=2,RANDBETWEEN(-5,-1),RANDBETWEEN(-5,9))) -> 5 | AC2: = | AD2: =(R2+IF(T2="",0,T2)*0.1+IF(U2="",0,U2)*0.01+IF(V2="",0,V2)*0.001+IF(W2="",0,W2)*0.0001+IF(X2="",0,X2)*0.00001)*(10^AB2) -> 100870 | AE2: =IF(ROW()<=Worksheet!$B$5/3,AE1+1,"") -> 32 | AF2: =RANDBETWEEN(1,Worksheet!$B$9+1) -> 5 | AG2: =RANDBETWEEN(1,9) -> 5 | AH2: =IF(AI2="","","·") -> · | AI2: =IF(COLUMN()-COLUMN($AF2)-1<$AF2,IF(RAND()<0.2,0,RANDBETWEEN(1,9)),IF(COLUMN()-COLUMN($AF2)-1=$AF2,RANDBETWEEN(1,9),"")) -> 9 | AJ2: 5 | AK2: 1 | AL2: 1 | AO2: =CONCATENATE(AG2,AH2,AI2,AJ2,AK2,AL2,AM2) -> 5·9511 | AP2: × 10 | AQ2: =IF(Worksheet!$B$6=1,RANDBETWEEN(0,9),IF(Worksheet!$B$6=2,RANDBETWEEN(-5,-1),RANDBETWEEN(-5,9))) -> 9 | AR2: = | AS2: =(AG2+IF(AI2="",0,AI2)*0.1+IF(AJ2="",0,AJ2)*0.01+IF(AK2="",0,AK2)*0.001+IF(AL2="",0,AL2)*0.0001+IF(AM2="",0,AM2)*0.00001)*(10^AQ2) -> 5951100000
A3: =IF(ROW()<=Worksheet!$B$5/3,ROW(),"") -> 3 | B3: =RANDBETWEEN(1,Worksheet!$B$9+1) -> 3 | C3: 1 | D3: · | E3: 0 | F3: 4 | K3: 1·04 | L3: × 10 | M3: =IF(Worksheet!$B$6=1,RANDBETWEEN(0,9),IF(Worksheet!$B$6=2,RANDBETWEEN(-5,-1),RANDBETWEEN(-5,9))) -> 5 | N3: = | O3: 104000 | P3: =IF(ROW()<=Worksheet!$B$5/3,P2+1,"") -> 18 | Q3: =RANDBETWEEN(1,Worksheet!$B$9+1) -> 1 | R3: 3 | Z3: 3 | AA3: × 10 | AB3: =IF(Worksheet!$B$6=1,RANDBETWEEN(0,9),IF(Worksheet!$B$6=2,RANDBETWEEN(-5,-1),RANDBETWEEN(-5,9))) -> -3 | AC3: = | AD3: 0.003 | AE3: =IF(ROW()<=Worksheet!$B$5/3,AE2+1,"") -> 33 | AF3: =RANDBETWEEN(1,Worksheet!$B$9+1) -> 4 | AG3: 8 | AH3: · | AI3: 2 | AJ3: 6 | AK3: 1 | AO3: 8·261 | AP3: × 10 | AQ3: =IF(Worksheet!$B$6=1,RANDBETWEEN(0,9),IF(Worksheet!$B$6=2,RANDBETWEEN(-5,-1),RANDBETWEEN(-5,9))) -> 3 | AR3: = | AS3: 8261
A4: =IF(ROW()<=Worksheet!$B$5/3,ROW(),"") -> 4 | B4: =RANDBETWEEN(1,Worksheet!$B$9+1) -> 1 | C4: 7 | K4: 7 | L4: × 10 | M4: =IF(Worksheet!$B$6=1,RANDBETWEEN(0,9),IF(Worksheet!$B$6=2,RANDBETWEEN(-5,-1),RANDBETWEEN(-5,9))) -> 7 | N4: = | O4: 70000000 | P4: =IF(ROW()<=Worksheet!$B$5/3,P3+1,"") -> 19 | Q4: =RANDBETWEEN(1,Worksheet!$B$9+1) -> 4 | R4: 4 | S4: · | T4: 0 | U4: 0 | V4: 6 | Z4: 4·006 | AA4: × 10 | AB4: =IF(Worksheet!$B$6=1,RANDBETWEEN(0,9),IF(Worksheet!$B$6=2,RANDBETWEEN(-5,-1),RANDBETWEEN(-5,9))) -> 8 | AC4: = | AD4: 400600000 | AE4: =IF(ROW()<=Worksheet!$B$5/3,AE3+1,"") -> 34 | AF4: =RANDBETWEEN(1,Worksheet!$B$9+1) -> 4 | AG4: 1 | AH4: · | AI4: 3 | AJ4: 1 | AK4: 7 | AO4: 1·317 | AP4: × 10 | AQ4: =IF(Worksheet!$B$6=1,RANDBETWEEN(0,9),IF(Worksheet!$B$6=2,RANDBETWEEN(-5,-1),RANDBETWEEN(-5,9))) -> -1 | AR4: = | AS4: 0.1317
A5: =IF(ROW()<=Worksheet!$B$5/3,ROW(),"") -> 5 | B5: =RANDBETWEEN(1,Worksheet!$B$9+1) -> 5 | C5: 7 | D5: · | E5: 6 | F5: 9 | G5: 8 | H5: 1 | K5: 7·6981 | L5: × 10 | M5: =IF(Worksheet!$B$6=1,RANDBETWEEN(0,9),IF(Worksheet!$B$6=2,RANDBETWEEN(-5,-1),RANDBETWEEN(-5,9))) -> 3 | N5: = | O5: 7698.1 | P5: =IF(ROW()<=Worksheet!$B$5/3,P4+1,"") -> 20 | Q5: =RANDBETWEEN(1,Worksheet!$B$9+1) -> 5 | R5: 1 | S5: · | T5: 5 | U5: 0 | V5: 8 | W5: 8 | Z5: 1·5088 | AA5: × 10 | AB5: =IF(Worksheet!$B$6=1,RANDBETWEEN(0,9),IF(Worksheet!$B$6=2,RANDBETWEEN(-5,-1),RANDBETWEEN(-5,9))) -> 5 | AC5: = | AD5: 150880 | AE5: =IF(ROW()<=Worksheet!$B$5/3,AE4+1,"") -> 35 | AF5: =RANDBETWEEN(1,Worksheet!$B$9+1) -> 2 | AG5: 3 | AH5: · | AI5: 2 | AO5: 3·2 | AP5: × 10 | AQ5: =IF(Worksheet!$B$6=1,RANDBETWEEN(0,9),IF(Worksheet!$B$6=2,RANDBETWEEN(-5,-1),RANDBETWEEN(-5,9))) -> 3 | AR5: = | AS5: 3200
A6: =IF(ROW()<=Worksheet!$B$5/3,ROW(),"") -> 6 | B6: =RANDBETWEEN(1,Worksheet!$B$9+1) -> 4 | C6: 6 | D6: · | E6: 4 | F6: 0 | G6: 2 | K6: 6·402 | L6: × 10 | M6: =IF(Worksheet!$B$6=1,RANDBETWEEN(0,9),IF(Worksheet!$B$6=2,RANDBETWEEN(-5,-1),RANDBETWEEN(-5,9))) -> -3 | N6: = | O6: 0.006402 | P6: =IF(ROW()<=Worksheet!$B$5/3,P5+1,"") -> 21 | Q6: =RANDBETWEEN(1,Worksheet!$B$9+1) -> 4 | R6: 4 | S6: · | T6: 0 | U6: 0 | V6: 9 | Z6: 4·009 | AA6: × 10 | AB6: =IF(Worksheet!$B$6=1,RANDBETWEEN(0,9),IF(Worksheet!$B$6=2,RANDBETWEEN(-5,-1),RANDBETWEEN(-5,9))) -> -1 | AC6: = | AD6: 0.4009 | AE6: =IF(ROW()<=Worksheet!$B$5/3,AE5+1,"") -> 36 | AF6: =RANDBETWEEN(1,Worksheet!$B$9+1) -> 3 | AG6: 8 | AH6: · | AI6: 0 | AJ6: 9 | AO6: 8·09 | AP6: × 10 | AQ6: =IF(Worksheet!$B$6=1,RANDBETWEEN(0,9),IF(Worksheet!$B$6=2,RANDBETWEEN(-5,-1),RANDBETWEEN(-5,9))) -> 7 | AR6: = | AS6: 80900000
A7: =IF(ROW()<=Worksheet!$B$5/3,ROW(),"") -> 7 | B7: =RANDBETWEEN(1,Worksheet!$B$9+1) -> 1 | C7: 2 | K7: 2 | L7: × 10 | M7: =IF(Worksheet!$B$6=1,RANDBETWEEN(0,9),IF(Worksheet!$B$6=2,RANDBETWEEN(-5,-1),RANDBETWEEN(-5,9))) -> 0 | N7: = | O7: 2 | P7: =IF(ROW()<=Worksheet!$B$5/3,P6+1,"") -> 22 | Q7: =RANDBETWEEN(1,Worksheet!$B$9+1) -> 1 | R7: 7 | Z7: 7 | AA7: × 10 | AB7: =IF(Worksheet!$B$6=1,RANDBETWEEN(0,9),IF(Worksheet!$B$6=2,RANDBETWEEN(-5,-1),RANDBETWEEN(-5,9))) -> 3 | AC7: = | AD7: 7000 | AE7: =IF(ROW()<=Worksheet!$B$5/3,AE6+1,"") -> 37 | AF7: =RANDBETWEEN(1,Worksheet!$B$9+1) -> 4 | AG7: 2 | AH7: · | AI7: 4 | AJ7: 3 | AK7: 2 | AO7: 2·432 | AP7: × 10 | AQ7: =IF(Worksheet!$B$6=1,RANDBETWEEN(0,9),IF(Worksheet!$B$6=2,RANDBETWEEN(-5,-1),RANDBETWEEN(-5,9))) -> 7 | AR7: = | AS7: 24320000
A8: =IF(ROW()<=Worksheet!$B$5/3,ROW(),"") -> 8 | B8: =RANDBETWEEN(1,Worksheet!$B$9+1) -> 1 | C8: 4 | K8: 4 | L8: × 10 | M8: =IF(Worksheet!$B$6=1,RANDBETWEEN(0,9),IF(Worksheet!$B$6=2,RANDBETWEEN(-5,-1),RANDBETWEEN(-5,9))) -> -2 | N8: = | O8: 0.04 | P8: =IF(ROW()<=Worksheet!$B$5/3,P7+1,"") -> 23 | Q8: =RANDBETWEEN(1,Worksheet!$B$9+1) -> 3 | R8: 8 | S8: · | T8: 6 | U8: 1 | Z8: 8·61 | AA8: × 10 | AB8: =IF(Worksheet!$B$6=1,RANDBETWEEN(0,9),IF(Worksheet!$B$6=2,RANDBETWEEN(-5,-1),RANDBETWEEN(-5,9))) -> 4 | AC8: = | AD8: 86100 | AE8: =IF(ROW()<=Worksheet!$B$5/3,AE7+1,"") -> 38 | AF8: =RANDBETWEEN(1,Worksheet!$B$9+1) -> 1 | AG8: 8 | AO8: 8 | AP8: × 10 | AQ8: =IF(Worksheet!$B$6=1,RANDBETWEEN(0,9),IF(Worksheet!$B$6=2,RANDBETWEEN(-5,-1),RANDBETWEEN(-5,9))) -> -4 | AR8: = | AS8: 0.0008
A9: =IF(ROW()<=Worksheet!$B$5/3,ROW(),"") -> 9 | B9: =RANDBETWEEN(1,Worksheet!$B$9+1) -> 5 | C9: 5 | D9: · | E9: 4 | F9: 8 | G9: 4 | H9: 4 | K9: 5·4844 | L9: × 10 | M9: =IF(Worksheet!$B$6=1,RANDBETWEEN(0,9),IF(Worksheet!$B$6=2,RANDBETWEEN(-5,-1),RANDBETWEEN(-5,9))) -> 9 | N9: = | O9: 5484400000 | P9: =IF(ROW()<=Worksheet!$B$5/3,P8+1,"") -> 24 | Q9: =RANDBETWEEN(1,Worksheet!$B$9+1) -> 1 | R9: 9 | Z9: 9 | AA9: × 10 | AB9: =IF(Worksheet!$B$6=1,RANDBETWEEN(0,9),IF(Worksheet!$B$6=2,RANDBETWEEN(-5,-1),RANDBETWEEN(-5,9))) -> 2 | AC9: = | AD9: 900 | AE9: =IF(ROW()<=Worksheet!$B$5/3,AE8+1,"") -> 39 | AF9: =RANDBETWEEN(1,Worksheet!$B$9+1) -> 5 | AG9: 9 | AH9: · | AI9: 5 | AJ9: 8 | AK9: 0 | AL9: 9 | AO9: 9·5809 | AP9: × 10 | AQ9: =IF(Worksheet!$B$6=1,RANDBETWEEN(0,9),IF(Worksheet!$B$6=2,RANDBETWEEN(-5,-1),RANDBETWEEN(-5,9))) -> 7 | AR9: = | AS9: 95809000
A10: =IF(ROW()<=Worksheet!$B$5/3,ROW(),"") -> 10 | B10: =RANDBETWEEN(1,Worksheet!$B$9+1) -> 5 | C10: 2 | D10: · | E10: 2 | F10: 0 | G10: 1 | H10: 5 | K10: 2·2015 | L10: × 10 | M10: =IF(Worksheet!$B$6=1,RANDBETWEEN(0,9),IF(Worksheet!$B$6=2,RANDBETWEEN(-5,-1),RANDBETWEEN(-5,9))) -> 6 | N10: = | O10: 2201500 | P10: =IF(ROW()<=Worksheet!$B$5/3,P9+1,"") -> 25 | Q10: =RANDBETWEEN(1,Worksheet!$B$9+1) -> 2 | R10: 6 | S10: · | T10: 4 | Z10: 6·4 | AA10: × 10 | AB10: =IF(Worksheet!$B$6=1,RANDBETWEEN(0,9),IF(Worksheet!$B$6=2,RANDBETWEEN(-5,-1),RANDBETWEEN(-5,9))) -> 1 | AC10: = | AD10: 64 | AE10: =IF(ROW()<=Worksheet!$B$5/3,AE9+1,"") -> 40 | AF10: =RANDBETWEEN(1,Worksheet!$B$9+1) -> 1 | AG10: 8 | AO10: 8 | AP10: × 10 | AQ10: =IF(Worksheet!$B$6=1,RANDBETWEEN(0,9),IF(Worksheet!$B$6=2,RANDBETWEEN(-5,-1),RANDBETWEEN(-5,9))) -> 1 | AR10: = | AS10: 80
A11: =IF(ROW()<=Worksheet!$B$5/3,ROW(),"") -> 11 | B11: =RANDBETWEEN(1,Worksheet!$B$9+1) -> 5 | C11: 6 | D11: · | E11: 0 | F11: 2 | G11: 1 | H11: 2 | K11: =CONCATENATE(C11,D11,E11,F11,G11,H11,I11) -> 6·0212 | L11: × 10 | M11: =IF(Worksheet!$B$6=1,RANDBETWEEN(0,9),IF(Worksheet!$B$6=2,RANDBETWEEN(-5,-1),RANDBETWEEN(-5,9))) -> 7 | N11: = | O11: =(C11+IF(E11="",0,E11)*0.1+IF(F11="",0,F11)*0.01+IF(G11="",0,G11)*0.001+IF(H11="",0,H11)*0.0001+IF(I11="",0,I11)*0.00001)*(10^M11) -> 60212000 | P11: =IF(ROW()<=Worksheet!$B$5/3,P10+1,"") -> 26 | Q11: =RANDBETWEEN(1,Worksheet!$B$9+1) -> 1 | R11: 7 | Z11: =CONCATENATE(R11,S11,T11,U11,V11,W11,X11) -> 7 | AA11: × 10 | AB11: =IF(Worksheet!$B$6=1,RANDBETWEEN(0,9),IF(Worksheet!$B$6=2,RANDBETWEEN(-5,-1),RANDBETWEEN(-5,9))) -> -4 | AC11: = | AD11: =(R11+IF(T11="",0,T11)*0.1+IF(U11="",0,U11)*0.01+IF(V11="",0,V11)*0.001+IF(W11="",0,W11)*0.0001+IF(X11="",0,X11)*0.00001)*(10^AB11) -> 0.0007 | AE11: =IF(ROW()<=Worksheet!$B$5/3,AE10+1,"") -> 41 | AF11: =RANDBETWEEN(1,Worksheet!$B$9+1) -> 2 | AG11: 2 | AH11: · | AI11: 6 | AO11: =CONCATENATE(AG11,AH11,AI11,AJ11,AK11,AL11,AM11) -> 2·6 | AP11: × 10 | AQ11: =IF(Worksheet!$B$6=1,RANDBETWEEN(0,9),IF(Worksheet!$B$6=2,RANDBETWEEN(-5,-1),RANDBETWEEN(-5,9))) -> -4 | AR11: = | AS11: =(AG11+IF(AI11="",0,AI11)*0.1+IF(AJ11="",0,AJ11)*0.01+IF(AK11="",0,AK11)*0.001+IF(AL11="",0,AL11)*0.0001+IF(AM11="",0,AM11)*0.00001)*(10^AQ11) -> 0.00026
A12: =IF(ROW()<=Worksheet!$B$5/3,ROW(),"") -> 12 | B12: =RANDBETWEEN(1,Worksheet!$B$9+1) -> 3 | C12: 4 | D12: · | E12: 8 | F12: 3 | K12: =CONCATENATE(C12,D12,E12,F12,G12,H12,I12) -> 4·83 | L12: × 10 | M12: =IF(Worksheet!$B$6=1,RANDBETWEEN(0,9),IF(Worksheet!$B$6=2,RANDBETWEEN(-5,-1),RANDBETWEEN(-5,9))) -> 2 | N12: = | O12: =(C12+IF(E12="",0,E12)*0.1+IF(F12="",0,F12)*0.01+IF(G12="",0,G12)*0.001+IF(H12="",0,H12)*0.0001+IF(I12="",0,I12)*0.00001)*(10^M12) -> 483 | P12: =IF(ROW()<=Worksheet!$B$5/3,P11+1,"") -> 27 | Q12: =RANDBETWEEN(1,Worksheet!$B$9+1) -> 3 | R12: 2 | S12: · | T12: 5 | U12: 8 | Z12: =CONCATENATE(R12,S12,T12,U12,V12,W12,X12) -> 2·58 | AA12: × 10 | AB12: =IF(Worksheet!$B$6=1,RANDBETWEEN(0,9),IF(Worksheet!$B$6=2,RANDBETWEEN(-5,-1),RANDBETWEEN(-5,9))) -> 4 | AC12: = | AD12: =(R12+IF(T12="",0,T12)*0.1+IF(U12="",0,U12)*0.01+IF(V12="",0,V12)*0.001+IF(W12="",0,W12)*0.0001+IF(X12="",0,X12)*0.00001)*(10^AB12) -> 25800 | AE12: =IF(ROW()<=Worksheet!$B$5/3,AE11+1,"") -> 42 | AF12: =RANDBETWEEN(1,Worksheet!$B$9+1) -> 2 | AG12: 2 | AH12: · | AI12: 5 | AO12: =CONCATENATE(AG12,AH12,AI12,AJ12,AK12,AL12,AM12) -> 2·5 | AP12: × 10 | AQ12: =IF(Worksheet!$B$6=1,RANDBETWEEN(0,9),IF(Worksheet!$B$6=2,RANDBETWEEN(-5,-1),RANDBETWEEN(-5,9))) -> 2 | AR12: = | AS12: =(AG12+IF(AI12="",0,AI12)*0.1+IF(AJ12="",0,AJ12)*0.01+IF(AK12="",0,AK12)*0.001+IF(AL12="",0,AL12)*0.0001+IF(AM12="",0,AM12)*0.00001)*(10^AQ12) -> 250
A13: =IF(ROW()<=Worksheet!$B$5/3,ROW(),"") -> 13 | B13: =RANDBETWEEN(1,Worksheet!$B$9+1) -> 3 | C13: 2 | D13: · | E13: 0 | F13: 3 | K13: =CONCATENATE(C13,D13,E13,F13,G13,H13,I13) -> 2·03 | L13: × 10 | M13: =IF(Worksheet!$B$6=1,RANDBETWEEN(0,9),IF(Worksheet!$B$6=2,RANDBETWEEN(-5,-1),RANDBETWEEN(-5,9))) -> 6 | N13: = | O13: =(C13+IF(E13="",0,E13)*0.1+IF(F13="",0,F13)*0.01+IF(G13="",0,G13)*0.001+IF(H13="",0,H13)*0.0001+IF(I13="",0,I13)*0.00001)*(10^M13) -> 2030000 | P13: =IF(ROW()<=Worksheet!$B$5/3,P12+1,"") -> 28 | Q13: =RANDBETWEEN(1,Worksheet!$B$9+1) -> 3 | R13: 4 | S13: · | T13: 4 | U13: 5 | Z13: =CONCATENATE(R13,S13,T13,U13,V13,W13,X13) -> 4·45 | AA13: × 10 | AB13: =IF(Worksheet!$B$6=1,RANDBETWEEN(0,9),IF(Worksheet!$B$6=2,RANDBETWEEN(-5,-1),RANDBETWEEN(-5,9))) -> 0 | AC13: = | AD13: =(R13+IF(T13="",0,T13)*0.1+IF(U13="",0,U13)*0.01+IF(V13="",0,V13)*0.001+IF(W13="",0,W13)*0.0001+IF(X13="",0,X13)*0.00001)*(10^AB13) -> 4.45 | AE13: =IF(ROW()<=Worksheet!$B$5/3,AE12+1,"") -> 43 | AF13: =RANDBETWEEN(1,Worksheet!$B$9+1) -> 1 | AG13: 6 | AO13: =CONCATENATE(AG13,AH13,AI13,AJ13,AK13,AL13,AM13) -> 6 | AP13: × 10 | AQ13: =IF(Worksheet!$B$6=1,RANDBETWEEN(0,9),IF(Worksheet!$B$6=2,RANDBETWEEN(-5,-1),RANDBETWEEN(-5,9))) -> 1 | AR13: = | AS13: =(AG13+IF(AI13="",0,AI13)*0.1+IF(AJ13="",0,AJ13)*0.01+IF(AK13="",0,AK13)*0.001+IF(AL13="",0,AL13)*0.0001+IF(AM13="",0,AM13)*0.00001)*(10^AQ13) -> 60
A14: =IF(ROW()<=Worksheet!$B$5/3,ROW(),"") -> 14 | B14: =RANDBETWEEN(1,Worksheet!$B$9+1) -> 1 | C14: 8 | K14: =CONCATENATE(C14,D14,E14,F14,G14,H14,I14) -> 8 | L14: × 10 | M14: =IF(Worksheet!$B$6=1,RANDBETWEEN(0,9),IF(Worksheet!$B$6=2,RANDBETWEEN(-5,-1),RANDBETWEEN(-5,9))) -> 9 | N14: = | O14: =(C14+IF(E14="",0,E14)*0.1+IF(F14="",0,F14)*0.01+IF(G14="",0,G14)*0.001+IF(H14="",0,H14)*0.0001+IF(I14="",0,I14)*0.00001)*(10^M14) -> 8000000000 | P14: =IF(ROW()<=Worksheet!$B$5/3,P13+1,"") -> 29 | Q14: =RANDBETWEEN(1,Worksheet!$B$9+1) -> 1 | R14: 9 | Z14: =CONCATENATE(R14,S14,T14,U14,V14,W14,X14) -> 9 | AA14: × 10 | AB14: =IF(Worksheet!$B$6=1,RANDBETWEEN(0,9),IF(Worksheet!$B$6=2,RANDBETWEEN(-5,-1),RANDBETWEEN(-5,9))) -> 5 | AC14: = | AD14: =(R14+IF(T14="",0,T14)*0.1+IF(U14="",0,U14)*0.01+IF(V14="",0,V14)*0.001+IF(W14="",0,W14)*0.0001+IF(X14="",0,X14)*0.00001)*(10^AB14) -> 900000 | AE14: =IF(ROW()<=Worksheet!$B$5/3,AE13+1,"") -> 44 | AF14: =RANDBETWEEN(1,Worksheet!$B$9+1) -> 4 | AG14: 6 | AH14: · | AI14: 1 | AJ14: 8 | AK14: 2 | AO14: =CONCATENATE(AG14,AH14,AI14,AJ14,AK14,AL14,AM14) -> 6·182 | AP14: × 10 | AQ14: =IF(Worksheet!$B$6=1,RANDBETWEEN(0,9),IF(Worksheet!$B$6=2,RANDBETWEEN(-5,-1),RANDBETWEEN(-5,9))) -> 9 | AR14: = | AS14: =(AG14+IF(AI14="",0,AI14)*0.1+IF(AJ14="",0,AJ14)*0.01+IF(AK14="",0,AK14)*0.001+IF(AL14="",0,AL14)*0.0001+IF(AM14="",0,AM14)*0.00001)*(10^AQ14) -> 6182000000
A15: =IF(ROW()<=Worksheet!$B$5/3,ROW(),"") -> 15 | B15: =RANDBETWEEN(1,Worksheet!$B$9+1) -> 4 | C15: 8 | D15: · | E15: 7 | F15: 1 | G15: 5 | K15: =CONCATENATE(C15,D15,E15,F15,G15,H15,I15) -> 8·715 | L15: × 10 | M15: =IF(Worksheet!$B$6=1,RANDBETWEEN(0,9),IF(Worksheet!$B$6=2,RANDBETWEEN(-5,-1),RANDBETWEEN(-5,9))) -> 1 | N15: = | O15: =(C15+IF(E15="",0,E15)*0.1+IF(F15="",0,F15)*0.01+IF(G15="",0,G15)*0.001+IF(H15="",0,H15)*0.0001+IF(I15="",0,I15)*0.00001)*(10^M15) -> 87.15 | P15: =IF(ROW()<=Worksheet!$B$5/3,P14+1,"") -> 30 | Q15: =RANDBETWEEN(1,Worksheet!$B$9+1) -> 5 | R15: 9 | S15: · | T15: 1 | U15: 1 | V15: 9 | W15: 9 | Z15: =CONCATENATE(R15,S15,T15,U15,V15,W15,X15) -> 9·1199 | AA15: × 10 | AB15: =IF(Worksheet!$B$6=1,RANDBETWEEN(0,9),IF(Worksheet!$B$6=2,RANDBETWEEN(-5,-1),RANDBETWEEN(-5,9))) -> 1 | AC15: = | AD15: =(R15+IF(T15="",0,T15)*0.1+IF(U15="",0,U15)*0.01+IF(V15="",0,V15)*0.001+IF(W15="",0,W15)*0.0001+IF(X15="",0,X15)*0.00001)*(10^AB15) -> 91.199 | AE15: =IF(ROW()<=Worksheet!$B$5/3,AE14+1,"") -> 45 | AF15: =RANDBETWEEN(1,Worksheet!$B$9+1) -> 3 | AG15: 3 | AH15: · | AI15: 8 | AJ15: 2 | AO15: =CONCATENATE(AG15,AH15,AI15,AJ15,AK15,AL15,AM15) -> 3·82 | AP15: × 10 | AQ15: =IF(Worksheet!$B$6=1,RANDBETWEEN(0,9),IF(Worksheet!$B$6=2,RANDBETWEEN(-5,-1),RANDBETWEEN(-5,9))) -> 0 | AR15: = | AS15: =(AG15+IF(AI15="",0,AI15)*0.1+IF(AJ15="",0,AJ15)*0.01+IF(AK15="",0,AK15)*0.001+IF(AL15="",0,AL15)*0.0001+IF(AM15="",0,AM15)*0.00001)*(10^AQ15) -> 3.82
